[Event "26th Hit Open-A 2022"]
[Site "Nova Gorica"]
[Date "2022.09.21"]
[Round "8.28"]
[White "Devnani Kush"]
[Black "Pirs, Matjaz"]
[Result "1-0"]
[ECO "E04"]
[WhiteElo "2095"]
[BlackElo "2203"]
[Annotator "TA"]
[PlyCount "99"]
[EventDate "2022.09.16"]
[EventType "swiss"]
[EventCountry "SLO"]
[SourceTitle "playchess.com"]
[Source "ChessBase"]
[SourceQuality "1"]
[TimeControl "5400+30"]

{[%evp 11,99,-3,0,-4,-5,-39,-27,-33,0,0,0,-41,-35,-47,-41,-48,-56,-64,-58,-154,-150,-177,-144,-131,-73,-62,-73,-68,-62,-110,33,-52,-26,-64,-16,-32,-33,-21,-19,-59,95,95,103,95,106,99,114,112,118,118,112,93,222,100,344,157,158,153,218,213,361,135,150,135,127,111,129,134,154,0,228,221,227,235,374,358,508,433,508,431,589,514,889,869,865,869,1089,1029,5243,3130]} 1. d4 {[%emt 0:00:15]} Nf6 {[%emt 0:00:34]} 2. c4 {[%emt 0:00:05]} e6 {[%emt 0:00:58]} 3. Nf3 {[%emt 0:00:05]} d5 {[%emt 0:02:02]} 4. g3 {[%emt 0:00:05]} dxc4 {[%emt 0:01:40]} 5. Bg2 {[%emt 0:00:06]} c6 {[%emt 0:03:20]} 6. O-O {[%emt 0:01:00]} b5 {[%emt 0:01:59]} 7. a4 {[%emt 0:00:04] E04: Open Catalan: 5 Nf3.} Bb7 {[%emt 0:14:54]} 8. b3 {[%emt 0:00:05]} (8. Ne5 $5 {[%cal Ra4b5]} Qc8 9. Bf4 $11) 8... cxb3 {[%emt 0:02:27]} 9. Nbd2 {[%emt 0:00:09] Black has an edge.} Be7 {[%emt 0:12:22]} 10. Nxb3 {[%emt 0:01:53]} Nbd7 {[%emt 0:05:29] [#]} 11. Bd2 $146 {[%emt 0:15:38]} ({Predecessor:} 11. Ne1 b4 12. a5 Ba6 13. Nd3 O-O 14. Qc2 Rc8 15. Rd1 Nd5 16. Bb2 Bxd3 17. Qxd3 {1-0 (76) Petrosyan,M (2613)-Mieles Palau,D (2382) Sitges 2019}) 11... b4 {[%emt 0:04:48]} 12. a5 {[%emt 0:00:25]} Ba6 {[%emt 0:16:12]} 13. Re1 {[%emt 0:22:41]} O-O {[%emt 0:01:54]} 14. Qc2 {[%emt 0:09:00]} Rc8 {[%emt 0:01:01]} 15. Qb2 {[%emt 0:15:12]} (15. Nc5 $1 $15 Nxc5 16. dxc5) 15... Ne4 $17 {[%emt 0:04:41]} 16. Rad1 {[%emt 0:00:05]} Nxd2 {[%emt 0:00:16]} 17. Nfxd2 {[%emt 0:01:53]} Qc7 {[%emt 0:02:23]} ({Better is} 17... c5 {And now ...c4 would win.} 18. dxc5 Nxc5) 18. Rc1 {[%emt 0:04:10]} Bb5 {[%emt 0:00:42]} 19. Ne4 {[%emt 0:03:35]} Rfd8 {[%emt 0:02:35]} 20. Red1 {[%emt 0:00:57]} (20. e3 $15) 20... f5 {[%emt 0:02:00]} ({Black should play} 20... Ba4 $17 {aiming for ...Bxb3.} 21. Ra1 Bxb3 22. Qxb3 Qb8) 21. Ned2 {[%emt 0:03:34]} (21. Nec5 $14) 21... Bf6 {[%emt 0:02:24]} 22. Qa2 {[%emt 0:01:29]} Re8 {[%emt 0:00:12]} (22... c5 $15 23. Nxc5 Nxc5 24. Rxc5 Qd7 25. Rxc8 Rxc8) 23. e4 {[%emt 0:00:40]} Kh8 {[%emt 0:00:25]} 24. Nc4 {[%emt 0:01:47]} fxe4 {[%emt 0:01:09]} 25. Bxe4 {[%emt 0:00:17]} Bxc4 $2 {[%emt 0:00:14]} (25... e5 $15 26. dxe5 Bxe5) 26. Rxc4 $16 {[%emt 0:00:02]} Qd6 {[%emt 0:01:44]} 27. Qc2 {[%emt 0:00:37]} g6 {[%emt 0:00:31]} 28. Bxc6 {[%emt 0:02:08]} ({But not} 28. Rxc6 $6 Rxc6 29. Qxc6 Qxc6 30. Bxc6 Rd8 $14) 28... Red8 {[%emt 0:00:57][%cal Od7e5] [#] White must now prevent ...Ne5!} 29. Bf3 {[%emt 0:02:23]} Rxc4 {[%emt 0:02:22]} 30. Qxc4 {[%emt 0:00:03]} Nf8 {[%emt 0:02:18]} 31. Nc5 {[%emt 0:01:21]} Rb8 {[%emt 0:03:44]} (31... Rc8 $16 {was called for.}) 32. Kg2 {[%emt 0:02:16]} (32. Na6 $18 {is more deadly.}) 32... Kg7 $2 {[%emt 0:00:19]} (32... Qc7 $16) 33. Nb3 {[%emt 0:00:49]} (33. Ne4 $18 Qe7 34. Nxf6 Kxf6 35. d5) 33... Rd8 {[%emt 0:00:23]} 34. h4 {[%emt 0:00:41]} h5 {[%emt 0:00:07]} (34... Rb8 $16 {might work better.} 35. Nc5 Qc7) 35. Nc5 $18 {[%emt 0:01:02]} Rb8 {[%emt 0:00:07]} (35... Qb8 {was worth a try.} 36. Na6 (36. Nxe6+ Nxe6 37. Qxe6 Qd6 $14) 36... Rc8) 36. a6 $2 {[%emt 0:01:42]} (36. Ne4 $18 {has better winning chances.} Qe7 37. Nxf6 Kxf6 38. d5) 36... Rb6 {[%emt 0:01:39]} 37. Bb7 {[%emt 0:00:39] White is much more active.} Qc7 {[%emt 0:01:44][%cal Ob4b3]} 38. Rd3 {[%emt 0:05:18]} Qd8 {[%emt 0:00:13]} 39. Nb3 {[%emt 0:00:59]} Nd7 {[%emt 0:03:46]} 40. Nc5 $2 {[%emt 0:01:20]} ({White should try} 40. Bf3 $16) 40... Qe7 $2 {[%emt 0:00:23]} (40... Nf8 $1 $11 {and Black is okay.}) 41. Na4 {[%emt 0:00:26][%cal Bc5a4,Ba4c3,Bc3b5,Bb5a7,Ba7c8,Bc8d6,Bd6e8][%mdl 32]} Rd6 {[%emt 0:01:19]} 42. Qxb4 {[%emt 0:00:26]} Nb6 {[%emt 0:00:59]} (42... Kh7 $142 43. Nc3 Rb6 44. Qxe7+ Bxe7) 43. Nc3 {[%emt 0:02:30] [#] Threatens to win with Nb5.} Qd8 {[%emt 0:00:41]} (43... Nd5 $142 44. Nxd5 exd5) 44. Nb5 {[%emt 0:00:52][%csl LRa7,LRd6] White is clearly winning.} Rd7 {[%emt 0:01:32]} 45. Nxa7 {[%emt 0:00:29]} Nd5 {[%emt 0:00:13]} 46. Qe1 {[%emt 0:01:13] Nc6 is the strong threat.} Qb6 {[%emt 0:00:48]} (46... Rxb7 $142 47. axb7 Qb6) 47. Nc8 {[%emt 0:00:25]} Qb5 {[%emt 0:00:45]} 48. Qxe6 {[%emt 0:00:26]} Nc7 {[%emt 0:00:44]} 49. Nd6 {[%emt 0:01:05]} Qa4 {[%emt 0:00:14]} 50. Ne8+ {[%emt 0:00:13] Quite a comeback for White.  Weighted Error Value: White=0.37/Black=0.50} 1-0

[Event "26th Hit Open-A 2022"]
[Site "Nova Gorica"]
[Date "2022.09.21"]
[Round "8.29"]
[White "Kepplinger, Lukas"]
[Black "Schloffer, Jasmin-Denise"]
[Result "1/2-1/2"]
[ECO "A45"]
[WhiteElo "1994"]
[BlackElo "2127"]
[Annotator "TA"]
[PlyCount "119"]
[EventDate "2022.09.16"]
[EventType "swiss"]
[EventCountry "SLO"]
[SourceTitle "playchess.com"]
[Source "ChessBase"]
[SourceQuality "1"]
[TimeControl "5400+30"]

{[%evp 9,119,-64,0,0,4,0,4,0,108,114,101,89,103,103,109,100,99,101,100,103,117,120,114,116,121,112,117,96,96,91,91,97,95,95,98,100,98,94,105,63,65,65,64,63,63,61,65,59,62,59,83,66,79,49,48,46,58,10,17,18,47,30,51,51,50,47,48,46,30,8,8,0,25,27,15,8,154,128,136,123,474,463,447,447,856,832,900,662,2590,2150,5289,5089,5409,4690,4868,4868,2589,2231,1414,1521,5089,5057,5057,0,9,9,9,9,9,0,0,0]} 1. d4 {[%emt 0:00:03]} Nf6 {[%emt 0:00:05]} 2. Bg5 {[%emt 0:00:10]} Ne4 {[%emt 0:00:06]} 3. h4 {[%emt 0:02:54]} c5 {[%emt 0:05:05]} 4. Nc3 {[%emt 0:09:33]} Qa5 {[%emt 0:06:27]} 5. Nf3 {[%emt 0:22:24][%cal Bg1f3,Bf3d4,Bd4b3][%mdl 32] [#]} d5 $146 {[%emt 0:12:54]} (5... Nxc3 $15 6. bxc3 cxd4 7. Qxd4 Nc6) ({Predecessor:} 5... Nc6 6. d5 Nxc3 7. bxc3 Ne5 8. Bd2 Nc4 9. e4 Nxd2 10. Qxd2 d6 11. Be2 g6 {½-½ (23) Vogel,T-Schulze,S (2165) Germany 1996}) 6. Bd2 $11 {[%emt 0:01:52] A45: Trompowsky Attack.} Nxd2 {[%emt 0:00:31]} 7. Qxd2 {[%emt 0:00:23] next e4 is good for White.} cxd4 {[%emt 0:06:41]} 8. Nxd4 {[%emt 0:01:54] And now e4 would win.} a6 {[%emt 0:09:17]} (8... e6 $1 $11 {keeps the balance.}) 9. Nb3 $16 {[%emt 0:09:39][%csl LRa5,LRd5]} Qd8 {[%emt 0:00:06]} 10. Qxd5 {[%emt 0:00:40]} e6 {[%emt 0:00:37]} 11. Qxd8+ {[%emt 0:17:43]} Kxd8 {[%emt 0:00:05]} 12. O-O-O+ {[%emt 0:00:07]} Kc7 {[%emt 0:00:05]} 13. g3 {[%emt 0:00:28]} Bd7 {[%emt 0:08:48]} 14. Bg2 {[%emt 0:01:23]} Bc6 {[%emt 0:00:05]} 15. Bxc6 {[%emt 0:01:32] White has more active pieces.} (15. Be4 {feels hotter.} Be7 16. Rd3 h6 17. Rhd1) 15... Nxc6 {[%emt 0:00:04]} 16. e3 {[%emt 0:02:57]} Be7 {[%emt 0:02:44]} 17. Ne4 {[%emt 0:01:51]} b6 {[%emt 0:02:15]} 18. Rd2 {[%emt 0:02:32]} h6 {[%emt 0:00:57]} 19. Rhd1 {[%emt 0:01:13]} Rad8 {[%emt 0:00:22]} 20. Rxd8 {[%emt 0:00:54]} Rxd8 {[%emt 0:00:14]} 21. Rxd8 {[%emt 0:06:17]} Bxd8 {[%emt 0:00:06][%mdl 4096] Endgame KBN-KNN} 22. Nd4 {[%emt 0:00:26]} Ne5 {[%emt 0:03:11]} 23. Kd2 {[%emt 0:02:34]} Be7 {[%emt 0:00:25]} 24. a3 {[%emt 0:00:38]} f5 {[%emt 0:05:50]} 25. Nc3 {[%emt 0:03:16]} ({Of course not} 25. Nxe6+ Kd7 26. N4c5+ bxc5 27. Nxg7 Nc4+ 28. Ke2 Nd6 $15) 25... Nc4+ {[%emt 0:00:55]} 26. Kc1 {[%emt 0:02:23]} Kd7 {[%emt 0:00:34]} 27. Nf3 {[%emt 0:02:42]} Bf6 {[%emt 0:04:18]} 28. Nd1 {[%emt 0:01:01]} g6 {[%emt 0:04:59]} 29. Nd2 {[%emt 0:00:31]} Nd6 {[%emt 0:02:22]} 30. b3 {[%emt 0:00:36]} e5 {[%emt 0:04:13]} 31. Nb2 {[%emt 0:01:10]} e4 {[%emt 0:01:45]} 32. c4 {[%emt 0:00:52]} Nf7 {[%emt 0:00:45]} 33. Nd1 {[%emt 0:01:40]} (33. Na4 $14) 33... Ne5 $11 {[%emt 0:00:56]} 34. Kc2 {[%emt 0:00:24]} Ng4 {[%emt 0:01:20]} 35. Nb1 {[%emt 0:00:35]} g5 {[%emt 0:03:42]} 36. hxg5 {[%emt 0:00:11]} hxg5 {[%emt 0:00:08]} 37. Nbc3 {[%emt 0:00:12]} Kd6 {[%emt 0:01:30]} 38. Nd5 {[%emt 0:01:47]} Bd8 {[%emt 0:00:04]} 39. b4 {[%emt 0:01:13]} (39. Nb4 $5 {[%cal Rb4a6]}) 39... b5 {[%emt 0:01:54]} 40. Kb3 {[%emt 0:00:24]} Ne5 {[%emt 0:01:50]} 41. cxb5 {[%emt 0:00:42]} Kxd5 {[%emt 0:02:50]} 42. bxa6 {[%emt 0:00:08] [#] Hoping for a7.} Bb6 {[%emt 0:00:44]} (42... Kc6 $1 $11) 43. a4 $16 {[%emt 0:00:18][%cal Ba3a4,Ba4a5][%mdl 1056] aiming for a5. White has strong compensation.} Kc6 {[%emt 0:06:51]} 44. a5 {[%emt 0:00:10]} Bd8 {[%emt 0:01:00][%mdl 8192]} (44... Ba7 $16) 45. Ka4 {[%emt 0:00:45]} Kc7 {[%emt 0:01:53] [#]} 46. b5 $1 {[%emt 0:00:46][%cal Bb4b5,Bb5b6][%mdl 32] Nc3 is the strong threat.} Nc4 {[%emt 0:00:30]} (46... Nd7 $142 47. Nc3 Kb8) 47. Kb4 $18 {[%emt 0:00:12]} Nd6 {[%emt 0:00:05]} 48. Kc5 {[%emt 0:00:20]} Be7 {[%emt 0:00:32]} 49. b6+ {[%emt 0:00:43]} Kb8 {[%emt 0:00:03]} 50. Kc6 {[%emt 0:00:31]} Nc8 {[%emt 0:00:40]} 51. Kd7 {[%emt 0:00:52] White threatens a7+ and mate.} Bb4 {[%emt 0:00:25]} 52. a7+ {[%emt 0:00:09]} Nxa7 {[%emt 0:00:06]} 53. bxa7+ {[%emt 0:00:07]} Kxa7 {[%emt 0:00:03] KB-KN} 54. Ke6 {[%emt 0:00:12]} f4 {[%emt 0:00:27]} 55. exf4 {[%emt 0:00:39]} gxf4 {[%emt 0:01:07]} 56. g4 $2 {[%emt 0:00:16]} (56. gxf4 $18 Kb8 57. Kd7) 56... Bc5 {[%emt 0:00:48] The position is equal.} 57. Ke5 {[%emt 0:01:13][%csl LRe4,LRf4]} e3 {[%emt 0:00:40]} 58. fxe3 {[%emt 0:00:10]} ({Don't go for} 58. Kxf4 $2 e2 59. Nc3 e1=Q $19) 58... fxe3 {[%emt 0:00:37] ( -> ...e2)} 59. Nxe3 {[%emt 0:00:09]} Bxe3 {[%emt 0:00:05]} 60. Kf5 {[%emt 0:00:07] Weighted Error Value: White=0.26 (precise) /Black=0.28 (precise)} 1/2-1/2

[Event "26th Hit Open-A 2022"]
[Site "Nova Gorica"]
[Date "2022.09.21"]
[Round "8.31"]
[White "Acimovic, Sergej"]
[Black "Novak, Rok"]
[Result "1-0"]
[ECO "D36"]
[WhiteElo "2114"]
[BlackElo "1763"]
[Annotator "TA"]
[PlyCount "91"]
[EventDate "2022.09.16"]
[EventType "swiss"]
[EventCountry "SLO"]
[SourceTitle "playchess.com"]
[Source "ChessBase"]
[SourceQuality "1"]
[TimeControl "5400+30"]

{[%evp 20,91,17,23,25,12,14,0,21,16,10,6,33,-7,24,0,14,20,37,28,27,-110,0,0,-8,-15,135,-133,189,43,169,162,146,162,131,132,384,58,52,31,50,50,46,43,48,27,648,641,656,646,637,68,652,631,641,614,614,613,643,547,628,619,587,555,548,547,653,654,650,652,634,633,29997,29998]} 1. d4 {[%emt 0:00:03]} d5 {[%emt 0:00:05]} 2. c4 {[%emt 0:00:22]} e6 {[%emt 0:00:10]} 3. Nc3 {[%emt 0:00:17]} Nf6 {[%emt 0:00:11]} 4. cxd5 {[%emt 0:00:24]} exd5 {[%emt 0:00:10]} 5. Bg5 {[%emt 0:00:19]} c6 {[%emt 0:00:11]} 6. Qc2 {[%emt 0:00:14]} h6 {[%emt 0:00:39]} 7. Bh4 {[%emt 0:05:37]} Be7 {[%emt 0:00:13]} 8. e3 {[%emt 0:00:55]} O-O {[%emt 0:00:22]} 9. Bd3 {[%emt 0:00:34]} Re8 {[%emt 0:00:17]} 10. Nge2 {[%emt 0:05:43]} Nbd7 {[%emt 0:00:52]} 11. O-O {[%emt 0:01:16]} a5 {[%emt 0:01:24] D36: Queen's Gambit Declined: Exchange Variation: Main line (5 Bg5 c6 6 Qc2).} 12. Rae1 {[%emt 0:04:35]} b5 {[%emt 0:09:42][%cal Bb7b5,Bb5b4][%mdl 32]} 13. f3 {[%emt 0:04:56]} Nb6 {[%emt 0:06:02] The position is equal.} 14. Bf2 {[%emt 0:03:41] [#]} Bf8 $146 {[%emt 0:06:39]} ({Predecessor:} 14... Bd7 15. Ng3 Rc8 16. e4 dxe4 17. fxe4 b4 18. e5 Ng4 19. Nce4 Be6 20. h3 Nxf2 21. Qxf2 {1-0 (28) Ramos Rodriguez,P (2101)-Almeida,M (2014) ICCF email 2019}) 15. Kh1 {[%emt 0:03:26]} Bd7 {[%emt 0:10:01]} 16. Ng3 {[%emt 0:07:52]} (16. e4 $5 {[%cal Re4e5]}) 16... b4 {[%emt 0:05:05]} 17. Nd1 {[%emt 0:04:59]} (17. Nce2 $5 {[%cal Re3e4]}) 17... c5 {[%emt 0:08:28]} 18. dxc5 {[%emt 0:07:55]} Rc8 {[%emt 0:01:14]} 19. e4 {[%emt 0:02:07]} dxe4 {[%emt 0:00:18]} 20. Ba6 {[%emt 0:14:13]} (20. Nxe4 $11 Nxe4 21. fxe4 (21. Bxe4 Bxc5 22. Bh7+ Kh8 $11)) 20... Rc7 {[%emt 0:02:43]} (20... exf3 $17 21. Bxc8 fxg2+ 22. Kxg2 Qxc8 23. Rxe8 Bxe8) 21. Nxe4 $11 {[%emt 0:00:29]} Nxe4 {[%emt 0:00:56]} 22. fxe4 {[%emt 0:00:58]} Na4 {[%emt 0:00:54]} ({Better is} 22... Qg5 $11) 23. Qb3 $2 {[%emt 0:01:17][%mdl 8192]} (23. Bc4 $16 {is forced if you want to stay better.}) 23... Qa8 $2 {[%emt 0:11:05][%mdl 8192]} (23... Nxc5 $17 24. Bxc5 Be6) 24. Bc4 {[%emt 0:01:53]} ({White has to play} 24. Bg3 $18 Ra7 25. Bc4 (25. Qxf7+ Kh8 $16)) 24... Rxe4 {[%emt 0:00:10]} (24... Bc6 $1 $14) 25. Bxf7+ {[%emt 0:09:58]} Kh8 {[%emt 0:00:15] [#]} 26. Rxe4 $1 {[%emt 0:03:02]} ({Reject} 26. Bd5 $6 Rxe1 27. Bxe1 (27. Bxa8 $2 {loses.} Rxf1+ 28. Bg1 Bxc5 $19) (27. Rxe1 Bc6 $11) 27... Qe8 $14) 26... Qxe4 {[%emt 0:01:29] [#]} 27. Bd5 {[%emt 0:00:47]} Qe8 {[%emt 0:02:39][%mdl 8192]} (27... Qe2 $16 28. Bc4 Qe4) 28. Re1 $2 {[%emt 0:04:14]} (28. Bd4 $18 {Qe3 is the strong threat.} Rxc5 29. Qf3 (29. Bxc5 Bxc5 30. Qg3 Nb6 $18)) 28... Qg6 $1 $14 {[%emt 0:03:14]} 29. Qf3 {[%emt 0:01:38]} (29. Be4 $5 {[%cal Re4g6]} Qf6 30. Bb1 Nxc5 31. Qc2 $14) 29... Qf6 {[%emt 0:01:19]} 30. Qxf6 {[%emt 0:02:57]} (30. Qg3 {keeps more tension.} Qd8 31. Qg6 Qf6 32. Qxf6 gxf6 33. Bd4) 30... gxf6 {[%emt 0:00:09]} 31. Bd4 $36 {[%emt 0:00:06][%mdl 2048] White fights for an advantage.} Kg7 {[%emt 0:01:34]} 32. Re3 {[%emt 0:00:09]} Bxc5 $2 {[%emt 0:01:28][%mdl 8192]} (32... Kh7 $11) 33. Rg3+ $18 {[%emt 0:00:24]} Kf8 {[%emt 0:00:44]} 34. Bxf6 {[%emt 0:00:09][%csl Gd5][%cal Rg3g8]} Ke8 {[%emt 0:01:27]} 35. Rg8+ {[%emt 0:01:36]} Bf8 {[%emt 0:00:11]} 36. Bg7 {[%emt 0:00:27]} Rc1 {[%emt 0:01:10][%cal Rc1d1]} 37. Rxf8+ {[%emt 0:00:22]} Ke7 {[%emt 0:00:09]} 38. Rf1 {[%emt 0:00:24]} Kd6 {[%emt 0:03:29]} 39. Bb3 {[%emt 0:00:31]} Nc5 {[%emt 0:00:14]} 40. Bf8+ {[%emt 0:00:06]} Ke5 {[%emt 0:00:44]} 41. Bxc5 {[%emt 0:01:17]} Rxc5 {[%emt 0:00:08]} 42. Nf2 {[%emt 0:00:58] And now Nd3+ would win.} Bb5 {[%emt 0:00:45] Against Nd3+} 43. Re1+ {[%emt 0:00:07]} Kf5 {[%emt 0:00:46]} 44. h4 {[%emt 0:01:45]} a4 {[%emt 0:00:15]} 45. Be6+ {[%emt 0:00:19]} Kf4 {[%emt 0:00:52]} 46. Kh2 {[%emt 0:00:43] Weighted Error Value: White=0.49/Black=0.75} 1-0

[Event "26th Hit Open-A 2022"]
[Site "Nova Gorica"]
[Date "2022.09.21"]
[Round "8.32"]
[White "Ivsek, Cveto"]
[Black "Krivenko, Dion"]
[Result "0-1"]
[ECO "A48"]
[WhiteElo "1763"]
[BlackElo "2113"]
[Annotator "TA"]
[PlyCount "92"]
[EventDate "2022.09.16"]
[EventType "swiss"]
[EventCountry "SLO"]
[SourceTitle "playchess.com"]
[Source "ChessBase"]
[SourceQuality "1"]
[TimeControl "5400+30"]

{[%evp 9,92,0,9,0,-2,-39,-62,-79,0,0,1,0,36,-43,-4,-8,0,0,-11,-7,36,31,17,18,27,37,28,30,35,6,17,0,21,10,23,0,0,0,0,0,0,0,0,0,0,0,-2,-14,-17,-18,-18,-89,-93,-243,-247,-326,-318,-352,-359,-393,-419,-395,-346,-360,-333,-741,-740,-704,-736,-699,-643,-637,-638,-5722,-5302,-6317,-6317,-2690,-2411,-29968,-29968,-29985,-29986,-29986,-29987]} 1. d4 {[%emt 0:00:12]} Nf6 {[%emt 0:00:07]} 2. Bf4 {[%emt 0:00:32]} g6 {[%emt 0:00:19]} 3. e3 {[%emt 0:00:38]} Bg7 {[%emt 0:00:08]} 4. Nf3 {[%emt 0:07:32]} O-O {[%emt 0:00:14]} 5. h3 {[%emt 0:02:04]} d6 {[%emt 0:00:57]} 6. Nc3 {[%emt 0:02:56] A48: 1 d4 Nf6 2 Nf3 g6: Torre, London and Colle Systems.} Nbd7 {[%emt 0:02:48] [#]} 7. e4 $146 {[%emt 0:02:44]} ({Predecessor:} 7. Bd3 Re8 8. Qd2 c5 9. d5 Nb6 10. e4 Nfd7 11. O-O-O Qc7 12. g4 e5 13. dxe6 fxe6 {0-1 (52) Kulgemeyer,J (797)-Schwedhelm,D (1154) Willingen 2022}) 7... c5 {[%emt 0:10:05] Strongly threatening ...cxd4.} 8. d5 {[%emt 0:04:19] [#] Black is slightly better.} a6 {[%emt 0:00:04]} ({Black should try} 8... b5 $1 $17 {[%cal Rb5b4] ...b4 is the strong threat.} 9. Qe2 (9. Bxb5 Nxe4 10. Nxe4 Qa5+ 11. Nc3 Bxc3+ 12. bxc3 Qxb5 $17) 9... b4) 9. a4 $1 $11 {[%emt 0:03:21]} Qa5 {[%emt 0:00:14] aiming for ...Nxe4.} 10. Bd2 {[%emt 0:01:20]} Qc7 {[%emt 0:09:48]} (10... Qb4 $5 {[%cal Rf6e4]}) 11. Rb1 {[%emt 0:03:07]} (11. Bc4 $14) 11... Re8 {[%emt 0:00:30]} (11... e6 $5 {[%cal Re6d5]}) 12. Be2 {[%emt 0:12:08]} e6 {[%emt 0:01:21]} 13. O-O {[%emt 0:01:49]} exd5 {[%emt 0:00:06]} 14. exd5 {[%emt 0:00:15]} Ne4 {[%emt 0:03:31]} 15. Nxe4 {[%emt 0:01:31]} Rxe4 {[%emt 0:00:07]} 16. c4 {[%emt 0:07:44]} Re8 {[%emt 0:07:15]} 17. Bd3 {[%emt 0:03:25]} Ne5 {[%emt 0:00:18]} 18. Nxe5 {[%emt 0:00:31]} Bxe5 {[%emt 0:00:10]} 19. Qc2 {[%emt 0:02:36]} Bd7 {[%emt 0:00:23]} 20. b3 {[%emt 0:00:42]} Rab8 {[%emt 0:01:30]} 21. Rfe1 {[%emt 0:01:58]} Qd8 {[%emt 0:01:53]} 22. Bc3 {[%emt 0:10:43]} Qg5 {[%emt 0:01:34]} 23. Bxe5 {[%emt 0:04:45]} Rxe5 {[%emt 0:00:36]} 24. Rxe5 {[%emt 0:00:29]} Qxe5 {[%emt 0:01:04]} 25. Qb2 {[%emt 0:01:46]} Qg5 {[%emt 0:01:07]} 26. Qc1 {[%emt 0:00:52]} Qxc1+ {[%emt 0:04:26]} 27. Rxc1 {[%emt 0:00:09][%mdl 4096] Endgame KRB-KRB} Kg7 {[%emt 0:00:01]} 28. Re1 {[%emt 0:00:17]} Kf6 {[%emt 0:00:07]} 29. f3 {[%emt 0:01:57]} b5 {[%emt 0:00:41]} 30. cxb5 {[%emt 0:04:18]} (30. axb5 $1 $11 axb5 31. Ra1) 30... axb5 $17 {[%emt 0:00:05]} 31. a5 {[%emt 0:00:19] This costs White the game.} (31. axb5 $17 Bxb5 32. Bc4) 31... Ra8 $19 {[%emt 0:00:51]} 32. Ra1 {[%emt 0:00:31]} Ke5 {[%emt 0:04:54]} 33. g4 {[%emt 0:06:14]} Kd4 {[%emt 0:00:59]} 34. Bc2 {[%emt 0:01:04]} Kc3 {[%emt 0:01:08]} 35. Ra2 {[%emt 0:01:02]} Ra6 {[%emt 0:01:43]} ({Inferior is} 35... c4 36. bxc4 bxc4 37. Kf2 $17) 36. Kf2 {[%emt 0:00:22]} Kb4 {[%emt 0:01:42]} 37. Ke3 $2 {[%emt 0:00:09] [#]} (37. Bd1 Rxa5 38. Re2) 37... Rxa5 {[%emt 0:00:47]} 38. Rxa5 Kxa5 {[%emt 0:00:01] KB-KB} 39. f4 {[%emt 0:04:37]} Kb4 {[%emt 0:02:49]} 40. Kd2 {[%emt 0:01:02]} f5 {[%emt 0:01:17]} 41. g5 {[%emt 0:00:31]} Be8 {[%emt 0:00:28]} 42. h4 {[%emt 0:02:06]} Bf7 {[%emt 0:00:28]} 43. h5 {[%emt 0:00:04]} Bxd5 {[%emt 0:00:29]} 44. h6 {[%emt 0:00:14]} Bxb3 {[%emt 0:00:53] Black mates.} 45. Bxf5 {[%emt 0:00:07]} gxf5 {[%emt 0:00:28]} 46. g6 {[%emt 0:00:08]} Bg8 {[%emt 0:00:05] Weighted Error Value: White=0.71/Black=0.22 (precise)} 0-1

[Event "26th Hit Open-A 2022"]
[Site "Nova Gorica"]
[Date "2022.09.21"]
[Round "8.33"]
[White "Alexandrova, Angelina"]
[Black "Centrih, Aleks"]
[Result "0-1"]
[ECO "C68"]
[WhiteElo "1842"]
[BlackElo "2095"]
[Annotator "TA"]
[PlyCount "44"]
[EventDate "2022.09.16"]
[EventType "swiss"]
[EventCountry "SLO"]
[SourceTitle "playchess.com"]
[Source "ChessBase"]
[SourceQuality "1"]
[TimeControl "5400+30"]

{[%evp 15,44,14,23,26,22,27,22,29,31,15,42,1,0,0,0,0,0,-443,-489,-654,-418,-895,-831,-820,-846,-29994,-29995,-29995,-29996,-29998,-29999]} 1. e4 {[%emt 0:00:33]} e5 {[%emt 0:00:08]} 2. Nf3 {[%emt 0:00:06]} Nc6 {[%emt 0:00:04]} 3. Bb5 {[%emt 0:00:04]} a6 {[%emt 0:00:04]} 4. Bxc6 {[%emt 0:00:04]} dxc6 {[%emt 0:00:06]} 5. O-O {[%emt 0:00:06]} Bg4 {[%emt 0:00:11]} 6. h3 {[%emt 0:00:11]} Bh5 {[%emt 0:01:34]} 7. g4 {[%emt 0:00:40]} Bg6 {[%emt 0:00:05]} 8. Nxe5 {[%emt 0:00:03]} Qh4 {[%emt 0:00:10] 8...Bd6 injects fresh life into this line.} 9. Qf3 {[%emt 0:01:44] C68: Ruy Lopez: Exchange Variation, sidelines.} f6 {[%emt 0:00:05]} 10. Nxg6 {[%emt 0:18:51]} hxg6 {[%emt 0:00:06][%cal Bh7g6,Bg6g5][%mdl 32]} 11. Kg2 {[%emt 0:00:10] The position is equal.} g5 {[%emt 0:00:34]} 12. Rh1 {[%emt 0:09:18][%cal Oe4e5]} Ne7 {[%emt 0:00:29][%cal Bg8e7,Be7g6,Bg6h4][%mdl 32]} 13. Qg3 {[%emt 0:05:03]} Qh7 {[%emt 0:12:24]} 14. d3 {[%emt 0:01:31]} O-O-O {[%emt 0:00:09]} 15. f4 {[%emt 0:05:21]} Ng6 {[%emt 0:09:33] [#] ...Bd6 is the strong threat.} 16. fxg5 $146 {[%emt 0:04:02][%mdl 8192] [#]} (16. f5 $11 {and White stays safe.} Nh4+ 17. Kf1) ({Predecessor:} 16. f5 Nh4+ 17. Kf1 Bd6 18. Qf2 g6 19. Nd2 gxf5 20. exf5 Qf7 21. Ne4 Qd5 22. Qa7 {½-½ (33) Kuegel,T (2207)-Sreeves,C (2333) Pardubice 2015}) 16... Bd6 $19 {[%emt 0:00:36]} 17. Qf2 {[%emt 0:00:30]} Rhf8 {[%emt 0:07:00]} 18. Qa7 {[%emt 0:03:49]} (18. Be3 $142 fxg5 19. Qe2) 18... Qh4 {[%emt 0:24:01]} 19. Qf2 {[%emt 0:05:57] Prevents Qg3+.} fxg5 {[%emt 0:00:25][%csl Gf8][%cal Rh4f2] [#]} 20. Qxh4 {[%emt 0:00:28]} Nxh4+ {[%emt 0:00:05] Black mates.} ({Not} 20... gxh4 21. Nc3 $14) 21. Kg1 {[%emt 0:00:24]} Bc5+ {[%emt 0:00:03]} 22. Kh2 {[%emt 0:00:10]} Rf2+ {[%emt 0:00:06] Weighted Error Value: White=1.16/Black=0.26 (precise)} 0-1